bitfinex-derivatives/quotes_BTCF0:USTF0_20250828
["timestamp","ask_amount","ask_price","bid_price","bid_amount"]
[1756391264496,0.4424621,112770.0,112760.0,0.68719336]
[1756391264700,0.4025121,112770.0,112760.0,0.68719336]
[1756391264992,0.0417121,112770.0,112760.0,1.31793523]
[1756391266498,0.0407121,112770.0,112760.0,1.31793523]
[1756391267502,0.0387121,112770.0,112760.0,1.31793523]
[1756391268997,0.0137121,112770.0,112760.0,1.31793523]
[1756391269600,0.03329188,112790.0,112780.0,0.1224419]
[1756391269798,0.01822188,112790.0,112780.0,1.91977766]
[1756391270004,0.40075,112800.0,112790.0,0.1224341]
[1756391270200,0.03995,112800.0,112790.0,0.1224341]
[1756391270393,0.01507,112800.0,112790.0,0.1224341]
[1756391270595,0.41879811,112810.0,112800.0,0.0886462]
[1756391270800,0.44137369,112810.0,112800.0,0.19314252]
[1756391271000,0.41879811,112810.0,112800.0,0.19314252]
[1756391272005,0.42279811,112810.0,112800.0,0.10449632]
[1756391272201,0.42279811,112810.0,112800.0,0.08711632]
[1756391272402,1.23037387,112810.0,112800.0,0.07071632]
[1756391272598,1.20549387,112810.0,112790.0,0.87872]
[1756391272906,0.40075,112800.0,112790.0,0.9125]
[1756391273104,0.03995,112800.0,112790.0,0.9125]
[1756391273297,0.40075,112800.0,112790.0,0.9125]
[1756391274106,0.40275,112800.0,112790.0,0.9125]
[1756391275400,0.40475,112800.0,112790.0,0.9125]
[1756391275706,0.40475,112800.0,112790.0,0.08646303]
[1756391276207,1.18744576,112800.0,112780.0,0.91379751]
[1756391276408,0.03995,112790.0,112780.0,0.05375751]
[1756391276607,0.03995,112790.0,112780.0,1.01877941]
[1756391277210,0.03995,112790.0,112780.0,0.93011751]
[1756391277608,0.05820916,112790.0,112780.0,0.05375751]
[1756391277809,0.05920916,112790.0,112780.0,0.92975751]
[1756391278009,0.05920916,112790.0,112780.0,0.05375751]
[1756391278209,0.05920916,112790.0,112780.0,0.92919751]
[1756391278410,0.06020916,112790.0,112780.0,0.05375751]
[1756391278711,0.06020916,112790.0,112780.0,0.0164]
[1756391278712,0.97758492,112790.0,112780.0,0.0164]
[1756391279012,0.97958492,112790.0,112780.0,0.0164]
[1756391279213,0.03995,112780.0,112770.0,0.9810492]
[1756391279401,0.03995,112780.0,112770.0,0.9974492]
[1756391279600,0.03995,112780.0,112770.0,0.90878]
[1756391280217,0.03995,112780.0,112770.0,0.9974498]
[1756391280412,0.40479916,112790.0,112770.0,1.60915381]
[1756391280613,0.02225916,112790.0,112780.0,0.66170766]
[1756391280820,0.02225916,112790.0,112780.0,1.02250766]
[1756391281015,0.06220916,112790.0,112780.0,0.4823119]
[1756391281215,0.42300916,112790.0,112780.0,0.1215119]
[1756391281414,0.38105916,112790.0,112780.0,0.1215119]
[1756391281614,0.42100916,112790.0,112780.0,0.1215119]
[1756391281822,0.41900916,112790.0,112780.0,0.88979]
[1756391282017,0.41900916,112790.0,112780.0,0.90717]
[1756391282321,0.42000916,112790.0,112780.0,0.90717]
[1756391282521,0.42000916,112790.0,112780.0,0.03285]
[1756391282724,0.05920916,112790.0,112780.0,0.90701]
[1756391283424,0.03546916,112790.0,112780.0,1.55324766]
[1756391283625,0.01925916,112790.0,112780.0,1.55324766]
[1756391283825,0.02025916,112790.0,112780.0,1.55324766]
[1756391284125,0.04499916,112790.0,112780.0,1.55324766]
[1756391284318,0.02125916,112790.0,112780.0,1.55324766]
[1756391284619,0.06020916,112790.0,112780.0,0.9956719]
[1756391284820,0.06220916,112790.0,112780.0,0.9956719]
[1756391285021,0.02225916,112790.0,112780.0,0.9956719]
[1756391285224,0.03846916,112790.0,112780.0,0.9956719]
[1756391285528,0.06220916,112790.0,112780.0,0.9956719]
[1756391285727,0.03846916,112790.0,112780.0,0.9956719]
[1756391286027,0.02225916,112790.0,112780.0,1.91404766]
[1756391286229,0.02225916,112790.0,112780.0,2.16404766]
[1756391286230,0.004,112790.0,112780.0,2.16404766]
[1756391287314,0.004,112790.0,112780.0,1.6064719]
[1756391287519,0.001,112790.0,112780.0,2.16404766]
[1756391287713,0.002,112790.0,112780.0,2.16404766]
[1756391288519,0.04195,112790.0,112780.0,1.6090719]
[1756391288723,0.01821,112790.0,112780.0,1.6090719]
[1756391288923,0.002,112790.0,112780.0,1.3590719]
[1756391289125,0.02574,112790.0,112780.0,1.3590719]
[1756391289418,0.002,112790.0,112780.0,1.3590719]
[1756391290831,0.002,112790.0,112780.0,1.91664766]
[1756391292630,0.02574,112790.0,112780.0,1.91664766]
[1756391293027,0.002,112790.0,112780.0,1.91664766]
[1756391293228,0.002,112790.0,112780.0,1.3590719]
[1756391293529,0.02574,112790.0,112780.0,1.03988766]
[1756391293725,0.04195,112790.0,112780.0,0.4823119]
[1756391293932,0.01821,112790.0,112780.0,0.4823119]
[1756391294125,0.002,112790.0,112780.0,1.03988766]
[1756391295630,0.04195,112790.0,112780.0,0.4823119]
[1756391295932,0.01821,112790.0,112780.0,1.03988766]
[1756391296627,0.04195,112790.0,112780.0,0.39365]
[1756391296833,0.04195,112790.0,112780.0,1.26933]
[1756391297334,0.04195,112790.0,112780.0,0.90853]
[1756391298533,1.21032576,112790.0,112780.0,0.90853]
[1756391299032,0.65275,112790.0,112780.0,0.90853]
[1756391299432,0.65396712,112790.0,112780.0,0.03285]
[1756391299626,0.65396712,112790.0,112780.0,0.01547]
[1756391299835,0.65396712,112790.0,112780.0,0.03285]
[1756391300033,0.02374,112780.0,112770.0,0.10435825]
[1756391300231,0.9763198,112780.0,112770.0,0.10435825]
[1756391300536,1.22753692,112780.0,112770.0,0.07150825]
[1756391300724,1.22753692,112780.0,112770.0,0.03285]
[1756391300928,0.66996116,112780.0,112770.0,0.03285]
[1756391302329,0.41996116,112780.0,112770.0,0.03285]
[1756391302531,0.42196116,112780.0,112770.0,0.1215199]
[1756391303631,0.42196116,112780.0,112770.0,0.19338997]
[1756391303833,0.42096116,112780.0,112770.0,0.19338997]
[1756391304031,0.42396116,112780.0,112770.0,0.19338997]
[1756391304631,0.42396116,112780.0,112770.0,0.10472007]
[1756391305138,0.42596116,112780.0,112770.0,0.10472007]
[1756391305533,0.42596116,112780.0,112770.0,0.19338997]
[1756391306131,0.06516116,112780.0,112770.0,0.19338997]
[1756391306341,0.42596116,112780.0,112770.0,0.19338997]
[1756391306533,0.42596116,112780.0,112770.0,0.75096573]
[1756391306836,0.02521116,112780.0,112770.0,0.75096573]
[1756391307032,0.02521116,112780.0,112770.0,1.11176573]
[1756391307735,0.02521116,112780.0,112770.0,1.44142822]
[1756391308039,0.02221116,112780.0,112770.0,1.44142822]
[1756391308233,0.02321116,112780.0,112770.0,0.88385246]
[1756391308539,0.02442828,112780.0,112770.0,1.44142822]
[1756391308936,0.02342828,112780.0,112770.0,1.36176573]
[1756391309739,0.02142828,112780.0,112770.0,1.36176573]
[1756391309939,0.02242828,112780.0,112770.0,1.36176573]
[1756391310131,0.02242828,112780.0,112770.0,0.80418997]
[1756391310438,0.06230828,112780.0,112770.0,1.67718997]
[1756391311231,0.03838828,112780.0,112770.0,1.67718997]
[1756391311444,0.03838828,112780.0,112770.0,2.23476573]
[1756391311837,0.02242828,112780.0,112770.0,1.67718997]
[1756391312141,0.02242828,112780.0,112770.0,2.23476573]
[1756391312841,0.04634828,112780.0,112770.0,2.23476573]
[1756391313043,0.02242828,112780.0,112770.0,2.23476573]
[1756391313540,0.04634828,112780.0,112770.0,2.23476573]
[1756391313740,0.02242828,112780.0,112770.0,2.23476573]
[1756391315437,0.02242828,112780.0,112770.0,2.31442822]
[1756391315844,0.02242828,112780.0,112770.0,1.75685246]
[1756391316040,0.02242828,112780.0,112770.0,2.31442822]
[1756391317439,0.00504828,112780.0,112770.0,2.31442822]
[1756391317843,0.00504828,112780.0,112770.0,1.75685246]
[1756391318245,0.00504828,112780.0,112770.0,2.31442822]
[1756391318941,0.00504828,112780.0,112770.0,1.19142822]
[1756391319141,0.04492828,112780.0,112770.0,1.50325246]
[1756391319442,0.04492828,112780.0,112770.0,1.14237246]
[1756391319743,0.02896828,112780.0,112770.0,1.50317246]
[1756391320145,0.04492828,112780.0,112770.0,0.19338997]
[1756391320339,0.04492828,112780.0,112770.0,1.06242997]
[1756391320340,0.40572828,112780.0,112770.0,1.06242997]
[1756391320546,0.65572828,112780.0,112770.0,0.10472007]
[1756391320838,1.21330404,112780.0,112770.0,0.94067007]
[1756391321245,0.65572828,112780.0,112770.0,0.94067007]
[1756391321445,0.65572828,112780.0,112770.0,0.07187007]
[1756391321646,0.03988,112770.0,112760.0,0.97687561]
[1756391322445,0.04231424,112770.0,112760.0,0.97687561]
[1756391322947,0.04231424,112770.0,112760.0,0.88820131]
[1756391323142,0.02392,112760.0,112750.0,0.4494803]
[1756391323346,0.06034726,112760.0,112750.0,1.39754279]
[1756391324050,0.06034726,112760.0,112750.0,1.3178803]
[1756391324452,0.03642726,112760.0,112750.0,0.9570803]
[1756391324643,0.03642726,112760.0,112750.0,0.9580803]
[1756391324947,0.06034726,112760.0,112750.0,0.9600803]
[1756391325747,0.02046726,112760.0,112750.0,0.9600803]
[1756391326348,0.02046726,112760.0,112750.0,1.0322611]
[1756391326749,0.02046726,112760.0,112750.0,1.58983686]
[1756391326949,0.02046726,112760.0,112750.0,1.58683686]
[1756391327149,0.02246726,112760.0,112750.0,1.58683686]
[1756391328052,0.02146726,112760.0,112750.0,1.58683686]
[1756391328354,0.02246726,112760.0,112750.0,1.58683686]
[1756391328852,0.02246726,112760.0,112750.0,1.94763686]
[1756391330053,0.04638726,112760.0,112750.0,1.0292611]
[1756391330554,0.02246726,112760.0,112750.0,1.3900611]
[1756391330754,0.04638726,112760.0,112750.0,1.3900611]
[1756391332155,0.04638726,112760.0,112750.0,1.0292611]
[1756391332756,0.06234726,112760.0,112750.0,0.0721808]
[1756391332957,0.67314726,112760.0,112750.0,0.86564]
[1756391333155,0.42314726,112760.0,112750.0,0.86564]
[1756391334955,0.03988,112750.0,112740.0,0.98220105]
[1756391335357,0.04231424,112750.0,112740.0,0.98220105]
[1756391336150,0.04231424,112750.0,112740.0,1.054154]
[1756391336353,0.01839424,112750.0,112740.0,1.054154]
[1756391336762,0.04231424,112750.0,112740.0,1.054154]
[1756391337153,0.40311424,112750.0,112740.0,0.08063578]
[1756391337361,0.40311424,112750.0,112740.0,0.86392]
[1756391338264,0.40311424,112750.0,112740.0,0.9526135]
[1756391339265,0.40311424,112750.0,112740.0,0.86392]
[1756391340165,0.40311424,112750.0,112740.0,0.93343938]
[1756391340560,0.40511424,112750.0,112740.0,0.93343938]
[1756391340761,0.40611424,112750.0,112740.0,0.93343938]
[1756391341266,0.96369,112750.0,112740.0,0.06951938]
[1756391341565,0.04017,112740.0,112730.0,0.960741]
[1756391342467,0.40340424,112740.0,112730.0,0.960741]
[1756391342654,0.42158486,112740.0,112730.0,0.0089652]
[1756391342859,0.42158486,112740.0,112720.0,1.3119038]
[1756391343056,0.02441,112730.0,112720.0,1.3119038]
[1756391343254,0.38141486,112740.0,112720.0,1.3119038]
[1756391343461,0.00243424,112730.0,112720.0,1.3119038]
[1756391343863,0.02684424,112730.0,112720.0,1.32077606]
[1756391344065,0.00243424,112730.0,112720.0,1.32077606]
[1756391344667,0.00243424,112730.0,112720.0,1.87835182]
[1756391344969,0.02684424,112730.0,112720.0,1.30188795]
[1756391345165,0.40340424,112730.0,112720.0,0.94108795]
[1756391345371,0.40440424,112730.0,112720.0,1.02979725]
[1756391345869,0.40440424,112730.0,112720.0,0.94108795]
[1756391346067,0.40440424,112730.0,112720.0,1.02979725]
[1756391346266,0.01919424,112730.0,112720.0,1.50600437]
[1756391346466,0.04360424,112730.0,112720.0,1.50600437]
[1756391346681,0.04360424,112730.0,112720.0,1.41729507]
[1756391346972,0.01919424,112730.0,112720.0,1.41729507]
[1756391347170,0.01819424,112730.0,112720.0,1.41729507]
[1756391347473,0.01919424,112730.0,112720.0,1.50600437]
[1756391347673,0.04460424,112730.0,112720.0,1.50600437]
[1756391347870,0.02019424,112730.0,112720.0,1.50600437]
[1756391348066,0.02019424,112730.0,112720.0,1.41729507]
[1756391348274,0.40340424,112730.0,112720.0,1.41729507]
[1756391348467,0.38099424,112730.0,112720.0,1.50600437]
[1756391348779,0.40740424,112730.0,112720.0,1.41729507]
[1756391349071,0.40740424,112730.0,112720.0,0.94108795]
[1756391349267,0.88361136,112730.0,112720.0,0.94108795]
[1756391349974,0.40740424,112730.0,112720.0,0.94108795]
[1756391350269,0.40740424,112730.0,112720.0,1.02979725]
[1756391350870,0.00643424,112730.0,112720.0,1.50600437]
[1756391351174,0.39164424,112730.0,112720.0,1.50600437]
[1756391351374,0.40740424,112730.0,112720.0,0.94108795]
[1756391352073,0.40740424,112730.0,112720.0,1.02979725]
[1756391352475,0.40740424,112730.0,112720.0,0.94108795]
[1756391354966,0.40740424,112730.0,112720.0,0.07868795]
[1756391355170,0.38299424,112730.0,112710.0,1.44212887]
[1756391355468,0.04260424,112720.0,112710.0,1.35341777]
[1756391355675,0.04260424,112720.0,112710.0,0.87721065]
[1756391355875,0.04260424,112720.0,112710.0,0.96592775]
[1756391356378,0.04260424,112720.0,112710.0,0.97492706]
[1756391356575,0.04260424,112720.0,112710.0,1.45113418]
[1756391357078,0.04260424,112720.0,112710.0,0.00899931]
[1756391357281,0.04360424,112720.0,112710.0,0.85776]
[1756391357472,0.06159533,112720.0,112710.0,0.9464771]
[1756391357672,0.06159533,112720.0,112710.0,1.42268422]
[1756391358177,0.06059533,112720.0,112710.0,1.42268422]
[1756391358378,0.06259533,112720.0,112710.0,1.42268422]
[1756391358570,0.06259533,112720.0,112710.0,0.85776]
[1756391358968,0.06259533,112720.0,112710.0,0.92990952]
[1756391359168,0.06259533,112720.0,112710.0,1.49483374]
[1756391359379,0.03818533,112720.0,112710.0,1.49483374]
[1756391359579,0.06259533,112720.0,112710.0,1.02756247]
[1756391360082,0.53980245,112720.0,112710.0,0.93884537]
[1756391360277,0.53880245,112720.0,112710.0,0.93884537]
[1756391360581,0.54080245,112720.0,112710.0,0.93884537]
[1756391361084,0.90160245,112720.0,112710.0,0.93884537]
[1756391361985,0.90160245,112720.0,112710.0,0.07214952]
[1756391362184,0.87719245,112720.0,112690.0,2.63179001]
[1756391362484,0.51881136,112710.0,112700.0,0.85568]
[1756391363478,0.04260424,112710.0,112700.0,0.85568]
[1756391363679,0.04260424,112710.0,112700.0,0.92510354]
[1756391364185,0.04360424,112710.0,112700.0,0.93415875]
[1756391364989,0.04460424,112710.0,112700.0,0.93415875]
[1756391365177,0.04460424,112710.0,112700.0,0.93307875]
[1756391365379,0.04460424,112710.0,112700.0,0.8546]
[1756391365578,0.52081136,112710.0,112700.0,0.8546]
[1756391365780,0.40540424,112710.0,112700.0,0.8546]
[1756391366187,0.88161136,112710.0,112700.0,0.8546]
[1756391366890,0.40540424,112710.0,112700.0,0.8546]
[1756391367080,0.88161136,112710.0,112690.0,0.96298289]
[1756391367586,0.00243424,112700.0,112690.0,1.43919001]
[1756391368086,0.02684424,112700.0,112690.0,1.43919001]
[1756391368291,0.00243424,112700.0,112690.0,1.51152977]
[1756391368480,0.00243424,112700.0,112690.0,1.03532265]
[1756391368676,0.00243424,112700.0,112690.0,1.51152977]
[1756391370287,0.00243424,112700.0,112690.0,1.03532265]
[1756391370486,0.00243424,112700.0,112690.0,1.51152977]
[1756391370890,0.00243424,112700.0,112690.0,1.52058872]
[1756391371088,0.06113691,112700.0,112690.0,0.1010543]
[1756391371388,0.89814403,112700.0,112690.0,0.1010543]
[1756391371584,0.89814403,112700.0,112690.0,0.9535343]
[1756391372287,0.39737691,112700.0,112690.0,0.9535343]
[1756391372880,0.89814403,112700.0,112690.0,0.9535343]
[1756391373089,0.42193691,112700.0,112690.0,0.9535343]
[1756391373291,0.89814403,112700.0,112690.0,0.9535343]
[1756391373891,0.42193691,112700.0,112690.0,0.9535343]
[1756391374291,0.89814403,112700.0,112690.0,0.9535343]
[1756391374693,0.42193691,112700.0,112690.0,0.9535343]
[1756391374882,0.89814403,112700.0,112690.0,0.9535343]
[1756391375393,0.89814403,112700.0,112690.0,0.1010543]
[1756391375587,0.42193691,112700.0,112690.0,0.1010543]
[1756391375892,0.89814403,112700.0,112690.0,0.09199535]
[1756391376488,0.42193691,112700.0,112690.0,0.09199535]
[1756391376690,0.89814403,112700.0,112690.0,0.09199535]
[1756391376986,0.06113691,112700.0,112690.0,0.18072815]
[1756391377190,0.02059691,112700.0,112690.0,0.65693527]
[1756391377391,0.03657691,112700.0,112690.0,0.18072815]
[1756391377592,0.02059691,112700.0,112690.0,0.65693527]
[1756391377787,0.02059691,112700.0,112690.0,0.18072815]
[1756391377995,0.03657691,112700.0,112690.0,0.65693527]
[1756391378192,0.03657691,112700.0,112690.0,0.66591658]
[1756391378388,0.02059691,112700.0,112690.0,0.66591658]
[1756391378695,0.03657691,112700.0,112690.0,0.66591658]
[1756391378895,0.03657691,112700.0,112690.0,0.18970946]
[1756391379095,0.03657691,112700.0,112690.0,0.66591658]
[1756391379693,0.06113691,112700.0,112690.0,0.66591658]
[1756391379892,0.03657691,112700.0,112690.0,0.18970946]
[1756391380095,0.03657691,112700.0,112690.0,0.66591658]
[1756391380797,0.06113691,112700.0,112690.0,0.66591658]
[1756391380992,0.03657691,112700.0,112690.0,0.66591658]
[1756391381195,0.03657691,112700.0,112690.0,0.18970946]
[1756391381393,0.06113691,112700.0,112690.0,0.57718378]
[1756391381992,0.42193691,112700.0,112690.0,0.57718378]
[1756391382197,0.42193691,112700.0,112690.0,1.42998378]
[1756391382497,0.42193691,112700.0,112690.0,0.95377666]
[1756391383490,0.89814403,112700.0,112690.0,0.95377666]
[1756391384994,0.03657691,112700.0,112690.0,1.04250946]
[1756391385200,0.06113691,112700.0,112690.0,1.51871658]
[1756391385597,0.42193691,112700.0,112690.0,1.51871658]
[1756391386104,0.03657691,112700.0,112690.0,1.51871658]
[1756391386297,0.06113691,112700.0,112690.0,1.51871658]
[1756391387298,0.14986191,112700.0,112690.0,1.51871658]
[1756391387791,0.14986191,112700.0,112690.0,1.04250946]
[1756391387992,0.14986191,112700.0,112690.0,0.18970946]
[1756391388193,0.14986191,112700.0,112690.0,1.04302946]
[1756391388802,0.12530191,112700.0,112690.0,1.04302946]
[1756391389290,0.14986191,112700.0,112690.0,1.04302946]
[1756391390501,0.14986191,112700.0,112690.0,1.51923658]
[1756391391298,0.12530191,112700.0,112690.0,1.51923658]
[1756391391803,0.14986191,112700.0,112690.0,1.51923658]
[1756391392307,0.12530191,112700.0,112690.0,1.51923658]
[1756391392904,0.14986191,112700.0,112690.0,1.04302946]
[1756391393105,0.14986191,112700.0,112690.0,1.51923658]
[1756391394304,0.14986191,112700.0,112690.0,0.95429666]
[1756391394605,0.51066191,112700.0,112690.0,0.95429666]
[1756391395106,0.51066191,112700.0,112690.0,1.04302946]
[1756391395506,0.14986191,112700.0,112690.0,1.04302946]
[1756391396105,0.12530191,112700.0,112690.0,1.04302946]
[1756391396305,0.12530191,112700.0,112690.0,1.51923658]
[1756391396702,0.14986191,112700.0,112690.0,1.51923658]
[1756391397004,0.12530191,112700.0,112690.0,1.51923658]
[1756391397405,0.51066191,112700.0,112690.0,1.51923658]
[1756391397597,0.51066191,112700.0,112690.0,1.04302946]
[1756391398199,0.48610191,112700.0,112690.0,1.04302946]
[1756391398507,0.51066191,112700.0,112690.0,0.95429666]
[1756391398806,0.51066191,112700.0,112690.0,0.10097666]
[1756391399108,0.51066191,112700.0,112690.0,0.95361666]
[1756391400004,0.51066191,112700.0,112690.0,1.04234946]
[1756391400005,0.48610191,112700.0,112690.0,1.04234946]
[1756391400204,0.10932191,112700.0,112690.0,1.51855658]
[1756391400603,0.10932191,112700.0,112690.0,1.87935658]
[1756391400804,0.02059691,112700.0,112690.0,1.87935658]
[1756391401006,0.02059691,112700.0,112690.0,2.12935658]
[1756391401200,0.00243424,112700.0,112690.0,2.12935658]
[1756391401405,0.41895062,112740.0,112710.0,0.0887109]
[1756391401602,0.0887089,112730.0,112720.0,1.77831302]
[1756391401903,0.0887089,112730.0,112720.0,1.3021059]
[1756391402201,0.1286789,112730.0,112720.0,0.8526]
[1756391402803,0.1070089,112730.0,112720.0,0.8526]
[1756391402996,0.1286792,112720.0,112710.0,1.02522886]
[1756391403203,0.1286792,112720.0,112710.0,1.87778886]
[1756391403602,0.0887092,112720.0,112710.0,1.87778886]
[1756391404004,0.0887092,112720.0,112710.0,1.40158174]
[1756391404209,0.1346766,112730.0,112720.0,0.0887092]
[1756391404502,0.0947066,112730.0,112720.0,0.56491632]
[1756391404708,0.0917066,112730.0,112720.0,0.56491632]
[1756391405406,0.1070066,112730.0,112720.0,0.56491632]
[1756391405702,0.1040092,112720.0,112710.0,0.38048591]
[1756391405900,0.60488632,112720.0,112710.0,0.87216591]
[1756391406403,0.0887092,112720.0,112710.0,0.96088291]
[1756391406603,0.1040092,112720.0,112710.0,0.96088291]
[1756391406910,0.1306792,112720.0,112710.0,1.43709003]
[1756391407096,0.1060092,112720.0,112710.0,1.43709003]
[1756391407500,0.1060092,112720.0,112710.0,0.96088291]
[1756391407703,0.1060092,112720.0,112710.0,1.43709003]
[1756391408004,0.0907092,112720.0,112710.0,1.43709003]
[1756391408210,0.0927092,112720.0,112710.0,1.32168291]
[1756391408410,0.0927092,112720.0,112710.0,1.79789003]
[1756391408710,0.1173792,112720.0,112710.0,1.79789003]
[1756391409104,0.0927092,112720.0,112710.0,1.79789003]
[1756391409506,0.004,112720.0,112710.0,1.32168291]
[1756391409711,0.004,112720.0,112710.0,2.04789003]
[1756391410113,0.0038445,112720.0,112710.0,2.04789003]
[1756391410308,0.0038445,112720.0,112710.0,2.12771336]
[1756391411314,0.10687412,112740.0,112730.0,0.0887014]
[1756391411504,0.12217412,112740.0,112730.0,1.32856712]
[1756391411706,0.14684412,112740.0,112730.0,0.85236]
[1756391412017,0.0887014,112730.0,112720.0,0.56491172]
[1756391412206,0.0887014,112730.0,112720.0,1.77807172]
[1756391412705,0.0887014,112730.0,112720.0,0.92571172]
[1756391413004,0.50764932,112740.0,112730.0,0.0887014]
[1756391413405,0.50764932,112740.0,112730.0,1.41722852]
[1756391413599,0.48297932,112740.0,112730.0,1.41722852]
[1756391414000,0.50764932,112740.0,112730.0,1.41722852]
[1756391414310,0.10887932,112740.0,112730.0,1.41722852]
[1756391414504,0.02018062,112740.0,112730.0,0.56490852]
[1756391414701,0.02018062,112740.0,112730.0,1.41718852]
[1756391415312,0.10887412,112740.0,112730.0,1.44615912]
[1756391415512,0.14884412,112740.0,112730.0,0.59387912]
[1756391416108,0.14884412,112740.0,112730.0,0.50517772]
[1756391416320,0.14884412,112740.0,112730.0,1.44611912]
[1756391416712,0.98785124,112740.0,112730.0,0.0289706]
[1756391416907,1.23785124,112740.0,112730.0,0.872187]
[1756391417415,0.02218062,112740.0,112730.0,1.43709542]
[1756391417611,0.04685062,112740.0,112730.0,1.34839412]
[1756391417810,0.02218062,112740.0,112730.0,1.43709542]
[1756391418016,0.004,112740.0,112730.0,0.59395161]
[1756391418210,0.004,112740.0,112730.0,1.33074449]
[1756391418514,0.004,112740.0,112730.0,1.80695161]
[1756391419020,0.004,112740.0,112730.0,0.59395161]
[1756391419316,0.04397,112740.0,112730.0,1.44615161]
[1756391419516,0.004,112740.0,112730.0,1.80695161]
[1756391419716,0.004,112740.0,112730.0,0.95475161]
[1756391419919,0.0193,112740.0,112730.0,1.80691161]
[1756391421315,0.004,112740.0,112730.0,1.80691161]
[1756391421520,0.004,112740.0,112730.0,0.95475161]
[1756391421719,0.0183,112740.0,112730.0,1.80687161]
[1756391422215,0.0173,112740.0,112730.0,1.33066449]
[1756391422419,0.002,112740.0,112730.0,1.80687161]
[1756391422914,0.0173,112740.0,112730.0,0.95475161]
[1756391423117,0.0173,112740.0,112730.0,1.80683161]
[1756391423420,0.0173,112740.0,112730.0,0.95475161]
[1756391424015,0.04197,112740.0,112730.0,1.35733031]
[1756391424316,1.14724367,112740.0,112730.0,0.88112319]
[1756391424719,1.14724367,112740.0,112730.0,0.02904319]
[1756391424919,0.67103655,112740.0,112730.0,0.88108319]
[1756391425120,1.14724367,112740.0,112730.0,0.88108319]
[1756391425920,0.67103655,112740.0,112730.0,0.88108319]
[1756391426218,1.14724367,112740.0,112730.0,0.88108319]
[1756391426419,1.14724367,112740.0,112730.0,0.02904319]
[1756391426618,0.03997,112730.0,112720.0,0.852]
[1756391426824,0.05792119,112720.0,112710.0,0.94540593]
[1756391427019,0.05792119,112720.0,112710.0,1.32119881]
[1756391427219,0.05792119,112720.0,112710.0,1.79740593]
[1756391427625,0.05792119,112720.0,112710.0,1.32119881]
[1756391427825,0.05792119,112720.0,112710.0,1.33020446]
[1756391428126,0.05792119,112720.0,112710.0,0.11740446]
[1756391428622,0.01795119,112720.0,112710.0,1.44561158]
[1756391428826,0.01795119,112720.0,112710.0,1.80641158]
[1756391429927,0.01795119,112720.0,112710.0,2.05641158]
[1756391430128,0.01795119,112720.0,112710.0,2.05841158]
[1756391430326,0.01926655,112740.0,112730.0,0.0887013]
[1756391430523,0.03483655,112740.0,112730.0,1.43656419]
[1756391430726,0.03383655,112740.0,112730.0,1.79736419]
[1756391431127,0.01826655,112740.0,112730.0,1.79736419]
[1756391431920,0.01926655,112740.0,112730.0,1.79736419]
[1756391432725,0.05978655,112740.0,112730.0,1.43656419]
[1756391432930,0.06078655,112740.0,112730.0,1.43652419]
[1756391433538,0.03583655,112740.0,112730.0,1.43652419]
[1756391433836,0.06078655,112740.0,112730.0,1.43652419]
[1756391434035,0.06078655,112740.0,112730.0,0.58456419]
[1756391434227,0.06078655,112740.0,112730.0,1.43652419]
[1756391435028,0.06078655,112740.0,112730.0,0.96027707]
[1756391435228,0.06078655,112740.0,112730.0,0.01965577]
[1756391435530,0.06078655,112740.0,112730.0,0.87157577]
[1756391435739,0.06078655,112740.0,112730.0,0.96027707]
[1756391436029,0.06078655,112740.0,112730.0,1.43648419]
[1756391436533,0.02026655,112740.0,112730.0,1.43648419]
[1756391438926,0.06078655,112740.0,112730.0,0.49586289]
[1756391439127,0.06078655,112740.0,112730.0,0.87153577]
[1756391439435,0.06078655,112740.0,112730.0,0.01965577]
[1756391439436,1.14779367,112740.0,112730.0,0.01965577]
[1756391441136,0.04052,112730.0,112720.0,0.0887092]
[1756391441338,0.40132,112730.0,112710.0,1.88603391]
[1756391441534,0.02495,112720.0,112710.0,1.88603391]
[1756391441733,0.01760976,112720.0,112710.0,1.88603391]
[1756391442235,0.04255976,112720.0,112710.0,1.88603391]
[1756391442434,0.04255976,112720.0,112710.0,1.80621058]
[1756391442836,0.04255976,112720.0,112710.0,1.44541058]
[1756391443035,0.01760976,112720.0,112710.0,1.44541058]
[1756391443639,0.01760976,112720.0,112710.0,1.88603391]
[1756391444038,0.04255976,112720.0,112710.0,1.80821058]
[1756391444340,0.01760976,112720.0,112710.0,1.80821058]
[1756391444637,0.04255976,112720.0,112710.0,1.81021058]
[1756391444833,0.01760976,112720.0,112710.0,1.81021058]
[1756391445140,0.01760976,112720.0,112710.0,1.81121058]
[1756391446138,0.01760976,112720.0,112710.0,1.81021058]
[1756391446338,0.01860976,112720.0,112710.0,1.81021058]
[1756391446540,0.05912976,112720.0,112710.0,0.48220346]
[1756391446840,0.05912976,112720.0,112710.0,1.81017058]
[1756391447039,0.05912976,112720.0,112710.0,0.59761058]
[1756391447339,0.05912976,112720.0,112710.0,1.44933058]
[1756391447640,0.05912976,112720.0,112710.0,1.44533058]
[1756391447938,0.05912976,112720.0,112710.0,0.59361058]
[1756391448333,0.05912976,112720.0,112710.0,1.44529058]
[1756391449042,0.06012976,112720.0,112710.0,1.44529058]
[1756391449238,0.06012976,112720.0,112710.0,0.88037156]
[1756391449438,1.14713688,112720.0,112710.0,0.00900565]
[1756391449639,1.14713688,112720.0,112700.0,0.07982333]
[1756391449640,0.04052,112710.0,112700.0,0.07982333]
[1756391449838,0.51672712,112710.0,112700.0,0.93146333]
[1756391450138,0.87752712,112710.0,112700.0,0.85164]
[1756391450442,0.88156688,112720.0,112700.0,1.41657202]
[1756391450640,0.40535976,112720.0,112700.0,1.41657202]
[1756391450837,0.3608,112710.0,112700.0,1.41657202]
[1756391451040,0.02495,112710.0,112700.0,1.41657202]
[1756391451241,0.40535976,112720.0,112700.0,1.41657202]
[1756391451438,0.88056688,112720.0,112700.0,1.41657202]
[1756391451740,0.04052,112710.0,112700.0,1.41657202]
[1756391452042,0.04052,112710.0,112700.0,1.42543113]
[1756391452235,0.87956688,112720.0,112700.0,1.42543113]
[1756391452636,0.02495,112710.0,112700.0,1.42543113]
[1756391453236,0.04052,112710.0,112700.0,0.94922401]
[1756391453436,0.51672712,112710.0,112700.0,0.86049911]
[1756391453642,0.51772712,112710.0,112700.0,0.86049911]
[1756391453943,0.04152,112710.0,112700.0,0.94922401]
[1756391454541,0.001,112710.0,112700.0,1.42543113]
[1756391454739,0.001,112710.0,112700.0,0.94922401]
[1756391454941,0.02595,112710.0,112700.0,1.42543113]
[1756391455135,0.001,112710.0,112700.0,1.42543113]
[1756391455348,0.001,112710.0,112700.0,0.57379113]
[1756391455645,0.04152,112710.0,112700.0,1.42543113]
[1756391456144,0.04252,112710.0,112700.0,1.42543113]
[1756391456345,0.002,112710.0,112700.0,1.42543113]
[1756391456550,0.002,112710.0,112700.0,2.03623113]
[1756391457046,0.002,112710.0,112700.0,2.11605446]
[1756391457743,0.002,112710.0,112700.0,2.14665024]